fUSD/lending_fUSD_20240508
["ID","MTS","AMOUNT","RATE_DAILY","PERIOD"]
[326622058,1715157039942,-1260.0,0.00019998,2]
[326622059,1715157039953,-1226.0,0.00019998,2]
[326622060,1715157039963,-543.0,0.00019998,2]
[326622061,1715157039973,-2431.0,0.00019998,2]
[326622062,1715157039983,-444.0,0.00019998,2]
[326622063,1715157039993,-22077.955,0.00019998,2]
[326622064,1715157040003,-5907.0,0.00019998,2]
[326622065,1715157040013,-288.0,0.00019998,2]
[326622066,1715157040023,-202.40860098,0.0002,2]
[326622067,1715157040034,-1768.70416813,0.0002,2]
[326622068,1715157040044,-800.0,0.0002,3]
[326622069,1715157040054,-153.83058852,0.00020074,2]
[326622070,1715157040065,-211.13,0.00020139,2]
[326622071,1715157040077,-1500.0,0.00020332,2]
[326622072,1715157040088,-369.42,0.00020442,2]
[326622073,1715157040098,-1000.0,0.00020519,2]
[326622074,1715157040108,-150.0,0.00020935,2]
[326622075,1715157040118,-800.0,0.00020959,2]
[326622076,1715157040128,-151.14,0.00020979,2]
[326622077,1715157040138,-15992.55238262,0.00020993,2]
[326622078,1715157040148,-1568.36830192,0.00020993,2]
[326622079,1715157040159,-716.17723846,0.00021,2]
[326622080,1715157040169,-154.31506026,0.00021003,2]
[326622081,1715157040180,-150.0,0.0002116,2]
[326622082,1715157040190,-154.31506026,0.0002119,2]
[326622083,1715157040200,-150.0,0.0002125,2]
[326622084,1715157040210,-160.478722,0.000215,3]
[326622085,1715157040222,-151.0,0.00021565,2]
[326622086,1715157040232,-1304.57,0.00021589,15]
[326622087,1715157040241,-150.0,0.00021609,2]
[326622088,1715157040255,-150.0,0.0002166,2]
[326622089,1715157040265,-1500.0,0.00021684,2]
[326622090,1715157040277,-214.0,0.000218,2]
[326622091,1715157040287,-100000.0,0.000218,2]
[326622092,1715157040297,-151.0,0.000218,2]
[326622095,1715157040308,-150.0,0.000218,2]
[326622098,1715157040319,-240.389405,0.000218,2]
[326622102,1715157040329,-151.0,0.000218,2]
[326622105,1715157040340,-284.366709,0.000218,2]
[326622107,1715157040351,-2219.31177784,0.000219,2]
[326622110,1715157040361,-2677.94402908,0.000219,2]
[326622112,1715157040371,-481.05124438,0.000219,2]
[326622116,1715157040381,-250.0,0.00021918,2]
[326622118,1715157040391,-250.0,0.00021918,2]
[326622121,1715157040401,-151.0,0.00021918,7]
[326622123,1715157040412,-150.0,0.00021977,2]
[326622126,1715157040422,-108911.62412539,0.00022,2]
[326622127,1715157040435,-393.9,0.00022,2]
[326622129,1715157040448,-2001.76069057,0.00022,2]
[326622130,1715157040460,-2288.564954,0.00022,2]
[326622132,1715157040472,-10569.72992466,0.00022,2]
[326622134,1715157040484,-6206.2,0.00022,2]
[326622135,1715157040497,-1629.76586371,0.00022,2]
[326622151,1715157041051,-2301.0,0.00016998,2]
[326622152,1715157041061,-984.175,0.00019362,2]
[326622153,1715157041076,-1734.99163,0.00019362,2]
[326622154,1715157041087,-333.511,0.00019998,2]
[326622155,1715157041097,-2000.0,0.00021918,2]
[326622156,1715157041106,-27021.76368584,0.00022,2]
[326622157,1715157041118,-250.88068151,0.00022,2]
[326622158,1715157041129,-351.95680804,0.00022,2]
[326622159,1715157041142,-4209.742,0.00022,2]
[326622160,1715157041153,-7103.53077201,0.00022,2]
[326622161,1715157041166,-6775.96856293,0.00022,2]
[326622162,1715157041181,-1741.69766042,0.00022,2]
[326622163,1715157041193,-14234.99887379,0.00022,2]
[326622164,1715157041204,-1614.2,0.00022,2]
[326622165,1715157042276,-2248.77301728,0.00022,2]
[326622166,1715157042288,-6550.58244479,0.00022,2]
[326622167,1715157043304,-938.52050567,0.00022,2]
[326622168,1715157043316,-880.188012,0.00022,2]
[326622169,1715157043327,-724.6697485,0.00022,2]
[326622170,1715157043348,-955.245,0.00022,2]
[326622171,1715157043367,-579.45888,0.00022,2]
[326622172,1715157043378,-683.33006705,0.00022,2]
[326622173,1715157043391,-455.34,0.00022,2]
[326622174,1715157043402,-9142.38341367,0.00022,2]
[326622179,1715157044670,-1397.0,0.00015298,2]
[326622181,1715157044679,-272.35449157,0.00019361,2]
[326622184,1715157044689,-65920.31671182,0.00022,2]
[326622187,1715157044698,-12636.75901314,0.00022,2]
[326622190,1715157044707,-546.4241888,0.00022,2]
[326622193,1715157044717,-850.0,0.00022,3]
[326622197,1715157044726,-271.739426,0.00022,7]
[326622200,1715157044735,-151.0,0.00022,7]
[326622202,1715157044744,-151.0,0.00022,7]
[326622205,1715157044753,-151.0,0.00022,7]
[326622209,1715157044763,-150.0,0.00022,3]
[326622211,1715157044772,-150.0,0.0002201,2]
[326622213,1715157044781,-300.0,0.0002201,2]
[326622215,1715157044790,-150.0,0.0002201,2]
[326622217,1715157044800,-150.0,0.00022099,2]
[326622219,1715157044809,-153.83058852,0.00022149,2]
[326622221,1715157044819,-1500.0,0.00022169,2]
[326622223,1715157044828,-1500.0,0.00022191,2]
[326622225,1715157044838,-1500.0,0.00022207,2]
[326622227,1715157044849,-1500.0,0.00022221,2]
[326622229,1715157044859,-500.0,0.00022287,2]
[326622231,1715157044868,-500.0,0.00022287,2]
[326622233,1715157044878,-500.0,0.00022287,2]
[326622235,1715157044888,-500.0,0.00022287,2]
[326622237,1715157044898,-500.0,0.00022287,2]
[326622239,1715157044908,-500.0,0.00022287,2]
[326622241,1715157044919,-500.0,0.00022287,2]
[326622244,1715157044929,-500.0,0.00022287,2]
[326622246,1715157044938,-500.0,0.00022287,2]
[326622248,1715157044947,-500.0,0.00022287,2]
[326622250,1715157044957,-500.0,0.00022287,2]
[326622252,1715157044967,-500.0,0.00022287,2]
[326622254,1715157044976,-500.0,0.00022287,2]
[326622256,1715157044986,-500.0,0.00022287,2]
[326622258,1715157044995,-500.0,0.00022287,2]
[326622260,1715157045004,-500.0,0.00022287,2]
[326622262,1715157045014,-500.0,0.00022287,2]
[326622264,1715157045023,-500.0,0.00022287,2]
[326622266,1715157045035,-500.0,0.00022287,2]
[326622268,1715157045047,-500.0,0.00022287,2]
[326622270,1715157045058,-500.0,0.00022287,2]
[326622272,1715157045068,-500.0,0.00022287,2]
[326622274,1715157045079,-500.0,0.00022287,2]
[326622276,1715157045088,-500.0,0.00022287,2]
[326622278,1715157045098,-500.0,0.00022287,2]
[326622280,1715157045107,-500.0,0.00022287,2]
[326622282,1715157045116,-500.0,0.00022287,2]
[326622284,1715157045126,-500.0,0.00022287,2]
[326622286,1715157045136,-500.0,0.00022287,2]
[326622288,1715157045146,-500.0,0.00022287,2]
[326622290,1715157045155,-500.0,0.00022287,2]
[326622292,1715157045167,-324.63,0.00022287,2]
[326622293,1715157045181,-500.0,0.00022287,2]
[326622294,1715157045191,-1500.0,0.0002241,2]
[326622295,1715157045202,-1500.0,0.00022435,2]
[326622296,1715157045213,-150.0,0.00022438,2]
[326622297,1715157045224,-150.0,0.00022445,2]
[326622298,1715157045236,-150.0,0.00022481,2]
[326622299,1715157045245,-150.0,0.00022493,2]
[326622300,1715157045255,-1500.0,0.00022495,2]
[326622301,1715157045266,-150.0,0.00022497,2]
[326622302,1715157045276,-150.0,0.000225,3]
[326622303,1715157045285,-150.0,0.00022535,2]
[326622304,1715157045294,-153.51665931,0.00022547,2]
[326622305,1715157045305,-150.0,0.00022547,2]
[326622306,1715157045316,-1000.0,0.00022571,2]
[326622307,1715157045326,-150.0,0.00022594,2]
[326622309,1715157045336,-150.0,0.00022594,2]
[326622310,1715157045345,-150.0,0.00022606,2]
[326622312,1715157045354,-150.0,0.00022614,2]
[326622314,1715157045364,-150.0,0.00022625,2]
[326622316,1715157045373,-150.0,0.00022628,2]
[326622318,1715157045382,-1500.0,0.00022632,2]
[326622320,1715157045391,-150.0,0.00022658,2]
[326622322,1715157045401,-1500.0,0.00022686,2]
[326622324,1715157045411,-150.0,0.00022728,2]
[326622326,1715157045421,-1500.0,0.00022729,2]
[326622328,1715157045431,-490.0,0.00022729,2]
[326622330,1715157045440,-150.0,0.00022731,2]
[326622332,1715157045450,-150.0,0.00022737,2]
[326622334,1715157045459,-150.0,0.00022738,2]
[326622335,1715157045469,-150.0,0.00022748,2]
[326622337,1715157045478,-1500.0,0.00022756,2]
[326622339,1715157045487,-150.0,0.00022762,2]
[326622341,1715157045497,-1500.0,0.00022771,2]
[326622343,1715157045506,-150.0,0.00022787,2]
[326622345,1715157045515,-1500.0,0.0002279,2]
[326622347,1715157045524,-150.0,0.00022803,2]
[326622349,1715157045535,-1117.0,0.00022829,2]
[326622351,1715157045545,-150.0,0.00022829,2]
[326622353,1715157045554,-1500.0,0.00022837,2]
[326622355,1715157045564,-1500.0,0.00022845,2]
[326622357,1715157045574,-1500.0,0.00022848,2]
[326622359,1715157045584,-150.0,0.00022854,2]
[326622361,1715157045593,-1500.0,0.00022863,2]
[326622363,1715157045603,-150.0,0.00022871,2]
[326622365,1715157045612,-150.0,0.00022871,2]
[326622367,1715157045623,-150.0,0.0002291,2]
[326622369,1715157045633,-1500.0,0.00022914,2]
[326622371,1715157045642,-155.93939659,0.00022914,2]
[326622373,1715157045659,-1500.0,0.00022939,2]
[326622375,1715157045670,-150.0,0.0002294,2]
[326622377,1715157045679,-1500.0,0.00022947,2]
[326622379,1715157045689,-150.0,0.00022963,2]
[326622381,1715157045699,-1500.0,0.00022967,2]
[326622383,1715157045709,-150.0,0.00022973,2]
[326622385,1715157045718,-150.0,0.00022974,2]
[326622387,1715157045727,-150.0,0.00022981,2]
[326622389,1715157045736,-1500.0,0.00022987,2]
[326622391,1715157045746,-348.974,0.00022998,2]
[326622393,1715157045756,-5907.0,0.00022998,2]
[326622395,1715157045765,-150.0,0.00023,3]
[326622397,1715157045774,-752.52089332,0.0002301,2]
[326622400,1715157045784,-150.0,0.00023015,2]
[326622402,1715157045793,-1500.0,0.00023016,2]
[326622403,1715157045803,-150.0,0.0002302,2]
[326622405,1715157045813,-150.0,0.00023021,2]
[326622407,1715157045823,-1500.0,0.00023024,2]
[326622409,1715157045833,-1500.0,0.00023028,2]
[326622412,1715157045842,-150.0,0.00023029,2]
[326622414,1715157045852,-150.0,0.00023032,2]
[326622415,1715157045862,-1500.0,0.00023037,2]
[326622417,1715157045871,-1500.0,0.00023038,2]
[326622420,1715157045881,-150.0,0.00023041,2]
[326622433,1715157045891,-150.0,0.00023041,2]
[326622437,1715157046027,-150.0,0.00023043,2]
[326622439,1715157046037,-1500.0,0.00023044,2]
[326622441,1715157046046,-1500.0,0.00023048,2]
[326622443,1715157046056,-150.0,0.00023048,2]
[326622445,1715157046065,-151.0,0.00023048,7]
[326622447,1715157046077,-151.0,0.00023048,7]
[326622449,1715157046087,-151.0,0.00023048,7]
[326622451,1715157046096,-1500.0,0.00023049,2]
[326622453,1715157046105,-150.0,0.0002305,2]
[326622455,1715157046114,-150.0,0.00023054,2]
[326622457,1715157046124,-1500.0,0.00023054,2]
[326622459,1715157046133,-150.0,0.00023056,2]
[326622461,1715157046142,-150.0,0.00023058,2]
[326622463,1715157046153,-150.0,0.00023069,2]
[326622465,1715157046163,-1500.0,0.00023073,2]
[326622467,1715157046175,-1500.0,0.00023076,2]
[326622469,1715157046186,-150.0,0.00023078,2]
[326622471,1715157046201,-1500.0,0.00023082,2]
[326622473,1715157046211,-150.0,0.00023083,2]
[326622475,1715157046222,-1500.0,0.00023086,2]
[326622477,1715157046231,-1500.0,0.00023096,2]
[326622479,1715157046241,-200.0,0.000231,2]
[326622481,1715157046251,-1000.0,0.000231,2]
[326622483,1715157046263,-500.0,0.000231,2]
[326622485,1715157046273,-500.0,0.000231,2]
[326622487,1715157046283,-200.0,0.00023101,2]
[326622489,1715157046293,-200.0,0.00023101,2]
[326622491,1715157046302,-1000.0,0.00023101,2]
[326622493,1715157046312,-1000.0,0.00023101,2]
[326622495,1715157046321,-200.0,0.00023101,2]
[326622497,1715157046330,-500.0,0.00023101,2]
[326622499,1715157046340,-500.0,0.00023101,2]
[326622501,1715157046351,-200.0,0.00023101,2]
[326622503,1715157046360,-1500.0,0.00023102,2]
[326622505,1715157046370,-150.0,0.00023105,2]
[326622507,1715157046379,-1500.0,0.00023109,2]
[326622509,1715157046389,-1500.0,0.00023112,2]
[326622511,1715157046399,-150.0,0.00023119,2]
[326622513,1715157046408,-150.0,0.00023121,2]
[326622515,1715157046418,-150.0,0.00023125,2]
[326622517,1715157046428,-1500.0,0.00023126,2]
[326622519,1715157046437,-1500.0,0.00023126,2]
[326622521,1715157046447,-1500.0,0.00023127,2]
[326622523,1715157046457,-150.0,0.00023132,2]
[326622526,1715157046467,-150.0,0.00023137,2]
[326622527,1715157046476,-150.0,0.00023145,2]
[326622530,1715157046486,-1500.0,0.00023145,2]
[326622532,1715157046495,-150.0,0.00023146,2]
[326622534,1715157046505,-150.0,0.00023153,2]
[326622536,1715157046514,-1500.0,0.00023163,2]
[326622538,1715157046523,-150.0,0.00023164,2]
[326622539,1715157046533,-150.0,0.00023164,2]
[326622541,1715157046543,-150.0,0.00023166,2]
[326622543,1715157046552,-1500.0,0.00023167,2]
[326622545,1715157046561,-1500.0,0.00023167,2]
[326622548,1715157046571,-1500.0,0.0002317,2]
[326622550,1715157046580,-1500.0,0.00023172,2]
[326622551,1715157046589,-150.0,0.00023173,2]
[326622553,1715157046599,-150.0,0.00023187,2]
[326622555,1715157046608,-150.0,0.00023193,2]
[326622557,1715157046617,-150.0,0.00023209,2]
[326622560,1715157046627,-150.0,0.00023227,2]
[326622562,1715157046636,-150.0,0.00023228,2]
[326622564,1715157046646,-933.54895211,0.00023256,2]
[326622565,1715157046655,-150.0,0.00023274,2]
[326622567,1715157046665,-1500.0,0.00023275,2]
[326622569,1715157046674,-504.2659,0.000233,2]
[326622571,1715157046683,-150.0,0.00023301,2]
[326622573,1715157046692,-150.0,0.00023311,2]
[326622575,1715157046702,-150.0,0.00023329,2]
[326622577,1715157046711,-1500.0,0.0002336,2]
[326622579,1715157046720,-1500.0,0.00023361,2]
[326622581,1715157046729,-150.0,0.00023373,2]
[326622583,1715157046738,-2002.05142652,0.000234,2]
[326622585,1715157046748,-15992.55238262,0.00023408,2]
[326622587,1715157046758,-1568.36830192,0.00023408,2]
[326622589,1715157046766,-151.15467405,0.00023442,2]
[326622591,1715157046775,-150.0,0.00023447,2]
[326622593,1715157046785,-150.0,0.00023489,2]
[326622595,1715157046795,-150.0,0.00023493,2]
[326622597,1715157046804,-150.0,0.000235,3]
[326622599,1715157046813,-1500.0,0.00023513,2]
[326622601,1715157046822,-1500.0,0.00023514,2]
[326622603,1715157046834,-150.0,0.00023518,2]
[326622605,1715157046843,-150.0,0.00023519,2]
[326622607,1715157046853,-150.0,0.00023554,2]
[326622609,1715157046863,-150.0,0.00023571,2]
[326622611,1715157046872,-150.0,0.00023607,2]
[326622613,1715157046882,-150.0,0.00023615,2]
[326622615,1715157046891,-150.0,0.0002365,2]
[326622617,1715157046901,-150.0,0.00023667,2]
[326622619,1715157046910,-150.0,0.00023668,2]
[326622621,1715157046920,-419.95,0.00023675,2]
[326622623,1715157046929,-1500.0,0.00023678,2]
[326622625,1715157046939,-1500.0,0.00023716,2]
[326622627,1715157046948,-150.0,0.00023719,2]
[326622629,1715157046958,-1500.0,0.00023754,2]
[326622631,1715157046967,-154.31506026,0.00023763,2]
[326622633,1715157046977,-150.0,0.00023784,2]
[326622635,1715157046986,-1500.0,0.00023832,2]
[326622637,1715157046996,-150.0,0.00023833,2]
[326622639,1715157047005,-1500.0,0.00023836,2]
[326622641,1715157047015,-150.0,0.00023845,2]
[326622643,1715157047025,-1500.0,0.00023862,2]
[326622645,1715157047035,-1500.0,0.00023876,2]
[326622647,1715157047044,-150.0,0.00023877,2]
[326622649,1715157047054,-150.0,0.00023889,2]
[326622651,1715157047064,-481.05124438,0.00023899,2]
[326622653,1715157047074,-1500.0,0.0002391,2]
[326622655,1715157047085,-1000.0,0.00023948,2]
[326622657,1715157047094,-150.0,0.00023952,2]
[326622659,1715157047103,-10000.0,0.00023961,2]
[326622661,1715157047113,-150.0,0.00023971,2]
[326622663,1715157047122,-1500.0,0.00023976,2]
[326622665,1715157047132,-1500.0,0.00023997,2]
[326622667,1715157047142,-432.43230672,0.00024,2]
[326622669,1715157047151,-2470.11280394,0.00024,2]
[326622671,1715157047161,-900.0,0.00024,3]
[326622673,1715157047173,-151.0,0.00024,7]
[326622675,1715157047186,-151.0,0.00024,7]
[326622677,1715157047195,-150.0,0.00024,4]
[326622679,1715157047205,-1500.0,0.00024034,2]
[326622681,1715157047214,-150.0,0.00024044,2]
[326622683,1715157047226,-150.0,0.00024092,2]
[326622685,1715157047236,-150.0,0.00024098,2]
[326622687,1715157047246,-1500.0,0.00024103,2]
[326622689,1715157047255,-150.0,0.00024124,2]
[326622691,1715157047266,-1500.0,0.00024126,2]
[326622693,1715157047276,-153.83058852,0.00024143,2]
[326622695,1715157047285,-150.0,0.00024201,2]
[326622697,1715157047295,-300.0,0.00024205,2]
[326622699,1715157047304,-150.0,0.0002422,2]
[326622701,1715157047313,-180.0,0.0002423,2]
[326622703,1715157047322,-150.0,0.00024244,2]
[326622705,1715157047331,-1500.0,0.00024251,2]
[326622707,1715157047348,-1500.0,0.00024305,2]
[326622709,1715157047371,-300.0,0.00024326,2]
[326622711,1715157047382,-150.0,0.0002433,2]
[326622713,1715157047391,-150.0,0.00024356,2]
[326622715,1715157047401,-2719.16664,0.00024362,2]
[326622717,1715157047411,-1500.0,0.00024383,2]
[326622719,1715157047421,-150.0,0.00024384,2]
[326622721,1715157047430,-150.0,0.00024391,2]
[326622723,1715157047440,-150.0,0.00024409,2]
[326622725,1715157047450,-150.0,0.00024417,2]
[326622727,1715157047459,-300.0,0.00024421,2]
[326622729,1715157047468,-300.0,0.00024462,2]
[326622731,1715157047478,-4000.0,0.00024463,7]
[326622733,1715157047487,-1500.0,0.00024464,2]
[326622735,1715157047496,-300.0,0.00024478,2]
[326622737,1715157047507,-150.0,0.00024478,2]
[326622739,1715157047518,-150.0,0.00024491,2]
[326622741,1715157047527,-2602.28168975,0.000245,2]
[326622743,1715157047537,-150.0,0.000245,4]
[326622745,1715157047546,-150.0,0.00024529,2]
[326622747,1715157047556,-150.0,0.00024543,2]
[326622749,1715157047566,-1500.0,0.00024543,2]
[326622751,1715157047576,-150.0,0.00024548,2]
[326622753,1715157047585,-150.0,0.00024572,2]
[326622755,1715157047595,-150.0,0.0002462,2]
[326622758,1715157047605,-150.0,0.00024622,2]
[326622760,1715157047615,-1000.0,0.00024623,2]
[326622762,1715157047625,-1500.0,0.00024623,2]
[326622764,1715157047635,-300.0,0.00024632,2]
[326622766,1715157047644,-150.0,0.00024647,2]
[326622768,1715157047653,-150.0,0.00024647,2]
[326622770,1715157047663,-150.0,0.0002465,2]
[326622772,1715157047674,-266.73623467,0.00024657,2]
[326622774,1715157047683,-151.0,0.00024658,7]
[326622776,1715157047693,-151.0,0.00024658,7]
[326622778,1715157047702,-151.0,0.00024658,7]
[326622780,1715157047712,-151.0,0.00024658,7]
[326622782,1715157047721,-151.0,0.00024658,7]
[326622784,1715157047731,-268.618256,0.00024658,7]
[326622786,1715157047740,-19485.18975301,0.00024705,2]
[326622788,1715157047749,-1500.0,0.00024709,2]
[326622790,1715157047758,-1500.0,0.00024717,2]
[326622792,1715157047767,-1500.0,0.00024742,2]
[326622794,1715157047776,-215.43441576,0.00024746,2]
[326622796,1715157047787,-150.0,0.00024791,2]
[326622798,1715157047796,-300.0,0.00024792,2]
[326622800,1715157047805,-150.0,0.00024795,2]
[326622802,1715157047815,-1500.0,0.00024834,2]
[326622804,1715157047824,-150.0,0.00024848,2]
[326622806,1715157047834,-300.0,0.00024848,2]
[326622808,1715157047844,-150.0,0.00024851,2]
[326622810,1715157047854,-158.72050773,0.00024855,2]
[326622811,1715157047864,-150.0,0.00024855,2]
[326622814,1715157047874,-150.0,0.00024858,2]
[326622816,1715157047883,-150.0,0.00024863,2]
[326622817,1715157047893,-300.0,0.00024865,2]
[326622819,1715157047903,-1500.0,0.00024868,2]
[326622821,1715157047912,-150.0,0.00024893,2]
[326622823,1715157047921,-2574.0,0.000249,2]
[326622825,1715157047931,-150.0,0.00024904,2]
[326622828,1715157047940,-1500.0,0.00024909,2]
[326622830,1715157047950,-150.0,0.00024942,2]
[326622832,1715157047960,-150.0,0.00024944,2]
[326622834,1715157047970,-150.0,0.00024966,2]
[326622836,1715157047980,-150.0,0.00024969,2]
[326622838,1715157047989,-9141.6134401,0.0002499,2]
[326622840,1715157047999,-155.0,0.00025,2]
[326622842,1715157048008,-471.76227117,0.00025,2]
[326622844,1715157048017,-2219.11364841,0.00025,2]
[326622846,1715157048027,-155.86884904,0.00025,2]
[326622848,1715157048036,-5667.69313038,0.00025,2]
[326622850,1715157048045,-1011.0,0.00025,4]
[326622852,1715157048055,-364.5285603,0.00025,2]
[326622854,1715157048064,-500.0,0.00025,2]
[326622856,1715157048072,-160.0,0.00025,2]
[326622858,1715157048083,-9797.84523661,0.00025,2]
[326622860,1715157048094,-409.2190105,0.00025,2]
[326622862,1715157048103,-179.9588821,0.00025,2]
[326622864,1715157048112,-1002.78,0.00025,2]
[326622866,1715157048122,-150.0,0.00025,4]
[326622868,1715157048132,-500.0,0.00025179,2]
[326622870,1715157048141,-500.0,0.00025179,2]
[326622872,1715157048150,-500.0,0.00025187,2]
[326622874,1715157048159,-500.0,0.00025187,2]
[326622876,1715157048170,-500.0,0.00025196,2]
[326622878,1715157048185,-500.0,0.00025196,2]
[326622880,1715157048194,-500.0,0.00025205,2]
[326622882,1715157048203,-500.0,0.00025205,2]
[326622884,1715157048214,-1304.57,0.00025325,15]
[326622886,1715157048224,-300.0,0.00025374,2]
[326622888,1715157048233,-435.36,0.00025379,2]
[326622890,1715157048242,-14458.10164841,0.0002555,2]
[326622892,1715157048252,-158.3299398,0.00025687,2]
[326622894,1715157048263,-15992.55238262,0.00025823,2]
[326622896,1715157048275,-158.72050773,0.00025837,2]
[326622899,1715157048284,-158.24,0.0002589,2]
[326622901,1715157048293,-481.05124438,0.00025898,2]
[326622903,1715157048302,-19485.18975301,0.00025905,2]
[326622905,1715157048311,-200.91565886,0.00026081,2]
[326622907,1715157048321,-178.490722,0.0002618,2]
[326622909,1715157048341,-151.0,0.00026232,7]
[326622911,1715157048352,-151.0,0.00026232,7]
[326622913,1715157048361,-247.937976,0.00026232,7]
[326622915,1715157048370,-154.31506026,0.00026303,2]
[326622917,1715157048380,-158.34387161,0.00026407,2]
[326622919,1715157048390,-178.490722,0.00026507,2]
[326622921,1715157048402,-154.31506026,0.00026508,2]
[326622923,1715157048420,-1002.78,0.0002673,2]
[326622925,1715157048442,-178.490722,0.00026834,2]
[326622927,1715157048452,-154.31506026,0.00026856,2]
[326622928,1715157048462,-150.69,0.00026859,2]
[326622929,1715157048471,-150.0,0.00026859,2]
[326622930,1715157048480,-150.0,0.00026859,2]
[326622931,1715157048490,-150.0,0.00026859,2]
[326622932,1715157048500,-150.0,0.00026859,2]
[326622933,1715157048509,-150.0,0.00026859,2]
[326622934,1715157048519,-150.0,0.00026859,2]
[326622935,1715157048528,-150.0,0.00026859,2]
[326622936,1715157048537,-150.0,0.00026859,2]
[326622937,1715157048547,-150.0,0.00026859,2]
[326622938,1715157048556,-663.0,0.00026882,2]
[326622940,1715157048565,-150.0,0.00026957,2]
[326622942,1715157048574,-1741.42627628,0.00027,2]
[326622944,1715157048585,-250.0,0.00027,2]
[326622946,1715157048594,-150.0,0.00027,2]
[326622948,1715157048603,-150.0,0.00027081,2]
[326622950,1715157048612,-19485.18975301,0.00027104,2]
[326622952,1715157048622,-663.0,0.0002716,2]
[326622954,1715157048631,-178.490722,0.00027162,2]
[326622956,1715157048641,-500.0,0.0002736,15]
[326622958,1715157048650,-500.0,0.0002736,15]
[326622960,1715157048660,-500.0,0.0002736,15]
[326622962,1715157048670,-300.0,0.00027397,2]
[326622964,1715157048679,-7667.204063,0.00027397,3]
[326622966,1715157048688,-150.0,0.00027397,2]
[326622968,1715157048697,-663.0,0.00027437,2]
[326622970,1715157048707,-166.62605943,0.0002746,2]
[326622972,1715157048716,-178.490722,0.00027489,2]
[326622974,1715157048726,-2241.75,0.000275,2]
[326622976,1715157048735,-2241.75,0.000275,2]
[326622978,1715157048747,-2241.75,0.000275,2]
[326622980,1715157048756,-2241.75,0.000275,2]
[326622982,1715157048765,-2241.75,0.000275,2]
[326622984,1715157048775,-2241.75,0.000275,2]
[326622986,1715157048785,-2241.75,0.000275,2]
[326622988,1715157048795,-2241.75,0.000275,2]
[326622991,1715157048804,-2241.75,0.000275,2]
[326622993,1715157048814,-2241.75,0.000275,2]
[326622995,1715157048824,-2241.75,0.000275,2]
[326622997,1715157048833,-2241.75,0.000275,2]
[326622999,1715157048842,-150.0,0.00027616,7]
[326623001,1715157048851,-500.0,0.00027633,15]
[326623003,1715157048860,-500.0,0.00027633,15]
[326623005,1715157048869,-2574.13073793,0.000277,2]
[326623007,1715157048878,-646.45224888,0.00027714,2]
[326623008,1715157048887,-594.3244804,0.00027714,2]
[326623011,1715157048897,-663.0,0.00027714,2]
[326623012,1715157048906,-1381.16015542,0.00027714,2]
[326623015,1715157048916,-148795.141329,0.0002777,2]
[326623017,1715157048925,-500.0,0.00027907,15]
[326623018,1715157048934,-500.0,0.00027907,15]
[326623020,1715157048944,-663.0,0.00027991,2]
[326623022,1715157048953,-153.83058854,0.00027996,2]